Cogmind - Beta 9.6 @@@ ROGUE MODE // 2020.07.14 @ 16:29:49 Player: Ariadne Result: Destroyed by S-10 Pest with Light Assault Rifle Performance ------------- Evolutions (0) 0 Regions Visited (1) 200 Robots Destroyed (5) 25 Value Destroyed (210) 210 Prototype IDs (0) 0 Alien Tech Used (0) 0 Bonus (0) 0 TOTAL SCORE: 435 Bonus ------- None Cogmind --------- Core Integrity 0/250 Matter 300/300 Energy 261/265 System Corruption 0% Temperature Cool (2) Movement Treading (160) Location -10/Materials Parts ------- > --- POWER (1) -------- Improved Ion Engine > --- PROPULSION (2) --- Light Treads Light Treads > --- UTILITY (2) ------ Large Storage Unit Improved Targeting Computer > --- WEAPON (2) ------- Improved Light Cannon > --- INVENTORY (10) --- Improved Ion Engine Aluminum Leg Aluminum Leg EM Pulse Gun Small Laser Peak State ------------ > --- POWER ------------ Improved Ion Engine > --- PROPULSION ------- Light Treads Light Treads > --- UTILITY ---------- Small Storage Unit Improved Targeting Computer > --- WEAPON ----------- EM Pulse Gun Improved Light Cannon > --- INVENTORY -------- Improved Ion Engine Aluminum Leg Aluminum Leg Small Laser [Rating: 10] Favorites ----------- Power Improved Ion Engine Engine Improved Ion Engine Propulsion Light Treads Treads Light Treads Utility Small Storage Unit Storage Small Storage Unit Processor Improved Targeting Computer Weapon EM Pulse Gun Energy Gun EM Pulse Gun Ballistic Cannon Improved Light Cannon Build | -11 -10 ------- Run | Scr Mat Slots Evolved . | . . Power . | . . Propulsion . | . . Utility . | . . Weapon . | . . Parts Attached 11 | 6 5 Power 2 | 1 1 Engine 2 | 1 1 Core . | . . Reactor . | . . Propulsion 2 | 2 . Treads 2 | 2 . Leg . | . . Wheel . | . . Hover . | . . Flight . | . . Utility 3 | 1 2 Device . | . . Storage 2 | 1 1 Processor 1 | . 1 Hackware . | . . Protection . | . . Artifact . | . . Weapon 4 | 2 2 Energy Gun 3 | 2 1 Energy Cannon . | . . Ballistic Gun . | . . Ballistic Cannon 1 | . 1 Launcher . | . . Special Weapon . | . . Impact Weapon . | . . Slashing Weapon . | . . Piercing Weapon . | . . Special Melee Weapon . | . . Unidentified Prototypes . | . . Parts Lost 1 | . 1 Power . | . . Propulsion . | . . Utility . | . . Weapon 1 | . 1 Highest Loss Streak 1 | . 1 Average Slot Usage (%) 99 | . 99 Engine 14 | . 14 Treads 28 | . 28 Storage 14 | . 14 Processor 13 | . 13 Energy Gun 14 | . 14 Ballistic Cannon 13 | . 13 Naked Turns . | . . Heaviest Build 29 | 12 29 Greatest Support 40 | 40 40 Greatest Overweight (x) . | . . Average Overweight (x) . | . . Largest Inventory Capacity 10 | 6 10 Average Capacity 6 | 5 6 Most Carried 6 | 4 6 Average Carried 3 | 2 4 Final Capacity 10 | 6 10 Final Carried 5 | 3 5 Class Distribution -------------------- 100% | Mutant Dominant Class ---------------- Mutant | -10/Materials Resources | -11 -10 ----------- Run | Scr Mat Matter Collected 378 | 204 174 Remotely . | . . Salvage Created 141 | . 141 Parts 5 | . 5 Haulers Intercepted . | . . Recyclers Shooed . | . . Parts Field Recycled . | . . Retrieved Matter . | . . Parts Self-Destructed . | . . Prevented . | . . Kills | -11 -10 ------- Run | Scr Mat Combat Hostiles Destroyed 4 | . 4 Guns 1 | . 1 Cannons 2 | . 2 AOE 1 | . 1 Classes Destroyed 2 | . 2 Worker 1 | . 1 Grunt 4 | . 4 Best Kill Streak 2 | . 2 Combat Bots Only 2 | . 2 Max Kills in Single Turn 1 | . 1 Gunslinging . | . . Exploded 1 | . 1 Melee . | . . Uniques/NPCs Destroyed . | . . Combat | -11 -10 -------- Run | Scr Mat Damage Taken 740 | . 740 Core 251 | . 251 Absorbed by Shields . | . . Core Remaining (%) 100 | 100 . Volleys Fired 17 | . 17 Largest 2 | . 2 Hottest 79 | . 79 Shots Fired 34 | . 34 Gun 17 | . 17 Cannon 17 | . 17 Launcher . | . . Special . | . . Kinetic 17 | . 17 Thermal . | . . Explosive . | . . Electromagnetic 17 | . 17 Robot Hit Streak 7 | . 7 Robot Miss Streak 2 | . 2 Penetration Max . | . . Secondary Targets . | . . Shots Hit Robots 27 | . 27 Core Hits 8 | . 8 Critical Hits . | . . Critical Kills . | . . Critical Parts Destroyed . | . . Melee Attacks . | . . Impact . | . . Slashing . | . . Piercing . | . . Sneak Attacks . | . . Combat Hostiles . | . . Follow-up Attacks . | . . Damage Inflicted 510 | . 510 Guns 185 | . 185 Cannons 192 | . 192 Explosions 121 | . 121 Melee . | . . Ramming 12 | . 12 Kinetic 192 | . 192 Thermal 121 | . 121 Explosive . | . . Electromagnetic 185 | . 185 Impact . | . . Slashing . | . . Piercing . | . . Highest Corruption . | . . Average Corruption . | . . Corruption Purged . | . . Overload Shots . | . . Overflow Damage 31 | . 31 Projectiles . | . . Explosions 31 | . 31 Melee . | . . Knockbacks 1 | . 1 Impact . | . . Kinetic 1 | . 1 Secondary . | . . Self-Inflicted Damage 223 | . 223 Shots 4 | . 4 Rammed . | . . Targets Rammed 1 | . 1 Kicked . | . . Crushed 1 | . 1 Highest Temperature 270 | . 270 Average Temperature 112 | . 112 Received Heat Transfer 192 | . 192 Siege Activations . | . . Robots Corrupted . | . . Combat Hostiles . | . . Parts Fried . | . . Impact Corruptions . | . . Robots Melted . | . . Combat Hostiles . | . . Parts Melted . | . . Heat Transferred 100 | . 100 Parts Sabotaged . | . . Parts Stolen . | . . Parts Stripped . | . . Power Chain Reactions 1 | . 1 Missiles Intercepted . | . . Alert | -11 -10 ------- Run | Scr Mat Peak Influence 190 | . 190 Average Influence 16 | . 31 Maximum Alert Level . | . . Low Security (%) 100 | 100 100 Level 1 . | . . Level 2 . | . . Level 3 . | . . Level 4 . | . . Level 5 . | . . High Security . | . . Max Security . | . . Squads Dispatched . | . . Investigation . | . . Extermination . | . . Reinforcement . | . . Assault . | . . Garrison . | . . Intercept . | . . Construction Impeded . | . . Haulers Reinforced . | . . Stealth | -11 -10 --------- Run | Scr Mat Distress Signals 1 | . 1 Communications Jammed . | . . Distress Signals . | . . Times Spotted 14 | . 14 Peak Tracking Total 6 | . 6 Tactical Retreats . | . . Traps | -11 -10 ------- Run | Scr Mat Traps Triggered . | . . Indirectly . | . . Trap Hack Attempts . | . . Triggered . | . . Disarmed . | . . Reprogrammed . | . . Reused . | . . Traps Extracted . | . . Installed . | . . Triggered . | . . Machines | -11 -10 ---------- Run | Scr Mat Machines Disabled 6 | . 6 Max in Single Turn 6 | . 6 Machines Sabotaged . | . . Garrisons Compromised . | . . Overloaded Fab Kills . | . . Fab Network Shutdowns . | . . Hacking | -11 -10 --------- Run | Scr Mat Machines Accessed 2 | . 2 Terminals 1 | . 1 Fabricators . | . . Repair Stations . | . . Recycling Units 1 | . 1 Scanalyzers . | . . Garrison Access . | . . Total Hacks 6 | . 6 Successful 2 | . 2 Failed 4 | . 4 Catastrophic . | . . Database Lockouts . | . . Manual . | . . Terminals 3 | . 3 Fabricators . | . . Repair Stations . | . . Recycling Units 3 | . 3 Scanalyzers . | . . Garrison Access . | . . Terminal Hacks 1 | . 1 Record 1 | . 1 Fabricator Hacks . | . . Repair Station Hacks . | . . Recycling Unit Hacks 1 | . 1 Report Inventory 1 | . 1 Scanalyzer . | . . Garrison Access Hacks . | . . Unauthorized Hacks . | . . Terminals . | . . Fabricators . | . . Repair Stations . | . . Recycling Units . | . . Scanalyzers . | . . Garrison Access . | . . Data Cores Recovered . | . . Used . | . . Hacking Detections 2 | . 2 Full Trace Events 2 | . 2 Feedback Events . | . . Feedback Blocked . | . . Robot Schematics Acquired . | . . Robots Built . | . . Matter . | . . Time . | . . Total Robot Build Rating . | . . Part Schematics Acquired . | . . Parts Built . | . . Matter . | . . Time . | . . Total Part Build Rating . | . . Parts Repaired . | . . Time . | . . Parts Recycled . | . . Recycled Matter . | . . Retrieved Matter . | . . Retrieved Components . | . . Parts Scanalyzed . | . . Part Schematics Acquired . | . . Parts Damaged . | . . Bothacking | -11 -10 ------------ Run | Scr Mat Used RIF Installer . | . . Robots Hacked . | . . Non-combat . | . . Combat . | . . Robot Hacks Applied . | . . Relay Couplers Released . | . . Robots Rewired . | . . Allies Hacked . | . . Hacks Repelled . | . . Allies | -11 -10 -------- Run | Scr Mat Total Allies . | . . Largest Group . | . . Highest-Rated Group . | . . Highest-Rated Ally . | . . Total Orders . | . . Ally Attacks . | . . Total Damage . | . . Kills . | . . Allies Corrupted . | . . Allies Melted . | . . Intel | -11 -10 ------- Run | Scr Mat Robot Analysis Total . | . . Derelict Logs Recovered . | . . Drone Launches . | . . Drone Recoveries . | . . Exploration | -11 -10 ------------- Run | Scr Mat Turns Passed 1122 | 542 580 Spaces Moved 465 | 172 293 Core 5 | 5 . Treads 460 | 167 293 Legs . | . . Wheels . | . . Hover . | . . Flight . | . . Fastest Speed 50 | 50 160 Average Speed 158 | 156 160 Slowest Speed 160 | 160 160 Overloaded Moves . | . . Propulsion Burnouts . | . . Robots Hopped . | . . Cave-ins Triggered . | . . Exploration Rate (%) 28 | 11 46 Regions Visited 1 Branch Regions . Pre-discovered Areas . | . . Known Exits Taken . | . . Unknown Exits Taken 1 | 1 . Scrap Searched . | . . Spaces Dug . | . . Terrain Destroyed 30 | . 30 Melee . | . . Projectile 2 | . 2 AOE 28 | . 28 Actions | -11 -10 --------- Run | Scr Mat Total 818 | 446 372 Wait 303 | 258 45 Move 464 | 171 293 Hop . | . . Pick Up 16 | 10 6 Fast Attach . | . . Attach 9 | 6 3 Detach 2 | . 2 Swap 2 | . 2 Drop 4 | 1 3 Fire 17 | . 17 Melee . | . . Ram . | . . Kick . | . . Crush 1 | . 1 Escape Stasis . | . . Rewire . | . . Trap . | . . Miscellaneous . | . . Route ------- -11/Scrapyard -10/Materials (discovered 2 exits: [*Mat] / [*Min]) History --------- Turn | Location | Event 12 | -11/Scrapyard | Discovered new exit (range 15) 543 | -11/Scrapyard | Entered Materials 544 | -10/Materials | Build established: Mutant 831 | -10/Materials | Discovered new exit (range 9) 882 | -10/Materials | Discovered new exit (range 11) 925 | -10/Materials | Core integrity fell below 50% 939 | -10/Materials | Core integrity fell below 20% 1123 | -10/Materials | Destroyed by S-10 Pest with Light Assault Rifle Last Messages --------------- 01075_ U-05 Engineer lays Concrete. 01075_ K-01 Serf collects debris. 01076_ U-05 Engineer lays Concrete. 01078_ K-01 Serf collects debris. 01078_ U-05 Engineer lays Concrete. 01083_ Acquired 71 matter. 01084_ U-05 Engineer lays Concrete. 01090_ U-05 Engineer builds a Wall. 01090_ U-05 Engineer lays Concrete. 01094_ U-05 Engineer builds a Wall. 01094_ U-05 Engineer lays Concrete. 01111_ EM Pulse Gun destroyed. 01111_ U-05 Engineer lays Concrete. 01113_ Crushed K-01 Serf. 01113_ K-01 Serf destroyed. 01113_ U-05 Engineer lays Concrete. 01116_ K-01 Serf collects debris. 01117_ U-05 Engineer lays Concrete. 01121_ K-01 Serf collects debris. 01121_ U-05 Engineer lays Concrete. Map ----- +----------------------------------------------------+ | | | | | | | | | ?????????????????????????????????????????????????? | | ?????????????????????????????????????????????????? | | ?????????????????????????????????####????????????? | | ????????????????????????????????##!!#????????????? | | ????????????????????????????????#! #####????????? | | ????????????????????????????????#! ########## | | ????????????????????????????????#! | | ????????????????????????????????#! ####?### | | ????????????????????????????????##!! #????#"" | | ???????????????????????#####?????#### #??##"|| | | ???????????????????????# #??????# #??#"" | | ???????????????????????# < #?????## #??# | | ???????????????????????# #######; #??# < | | ???????????????????????# k #??# | | ???????????????????????# #??# | | ??????????????????????## #???# | | ??????????????????????#; #????# | | ??????????????????????#; ######????# | | ??????????????????????#; ########### | | ??????????????????????# + # | | ??????????????????????# ## # | | ??????????????????????#; @ ## # | | ??????????????????????# # # | | ??????????????????????## # + | | ????????????????????? # u ;# # | | ????????????????????"" # ;# # | | ???????????????????""" # % k ## # | | ?????????????????? """ #%% ############ | | ??????????????????? # ! ???? | | ??????????????????? # ? | | ??????????????????? # u w ? | | ?????????????????? #s s ########+#### | | ??????????????????##+###r s #???????????? | | ??????????????????# a #???????????? | | ??????????????????# ####### ##### #???????????? | | ?????????????? ^ #?????#+#???? #???????????? | | ??????????? #??????? ???? #???????????? | | ??????????###### #???????? ????#???????????? | | ???????????????# #?????????#???????????????? | | ?????????????? #?????????????????????????? | | ????????????? +?????????????????????????? | | ??????????? """ ! #?????????????????????????? | | ?????????? """"" ??????????????????????????? | | ??????????? ??""" #??????????????????????????? | | ??????????? ??????" ???????????????????????????? | | ?????????????????? ???????????????????????????? | +----------------------------------------------------+ Best States ------------- Heat Dissipation 25 Energy Generation 12 Energy Capacity 265 Matter Stores 300 Matter Capacity 300 Sight Range 16 Terrain Scan Density 10 Evasion (%) 40 Targeting Accuracy 6 Recoil Reduction 2 Item Schematics ----------------- None Robot Schematics ------------------ None Fabricated ------------ Nothing Alien Tech Used ----------------- None Achievements -------------- None Challenges ------------ None Game ------ Seed RemoteBoreTriangulator Manual? 0 Play Time 00:10:35 Cumulative 2.5 hours Start 2020.07.14 @ 16:19:05 End 2020.07.14 @ 16:29:49 Sessions 1 Manual Loads 0 Difficulty Rogue Special Mode None Game No. 4 Rogue 4 Adventurer 0 Explorer 0 Win Type - Total 0 Types 0/0/0/0/0/0/0 Lore% 1 Gallery% 3 Achievement% 4 Wizard Run 0 Options --------- ASCII 0 Keyboard 0 Movement Arrows Keybinds 0 Fullscreen 0 Font 18/CogWide Map View 75x50 Tactical HUD 1 Map Filters NONE Filters NONE Steam 1 RUN: de97a9be-89cc-409a-9ca9-6b57b574ea00